bitfinex-derivatives/quotes_SOLF0:USTF0_20241227
["timestamp","ask_amount","ask_price","bid_price","bid_amount"]
[1735274123679,7.20639163,190.32,190.24,8.50174317]
[1735274123881,7.20639163,190.32,190.26,8.50174317]
[1735274124273,7.20639163,190.32,190.3,2.6308]
[1735274124482,7.20639163,190.32,190.28,8.50174317]
[1735274124684,7.20639163,190.32,190.27,8.50174317]
[1735274124880,2.6307,190.31,190.26,4.2909]
[1735274125183,2.6307,190.31,190.25,11.54174317]
[1735274125184,8.50174317,190.31,190.25,11.54174317]
[1735274126390,8.50174317,190.33,190.25,14.17324317]
[1735274126777,8.50174317,190.33,190.25,11.54174317]
[1735274127686,2.6308,190.31,190.26,2.6313]
[1735274127882,11.13254317,190.31,190.26,2.6313]
[1735274128083,8.50174317,190.31,190.25,11.54174317]
[1735274128386,2.631,190.29,190.25,5.6715]
[1735274130491,2.6308,190.3,190.25,5.6715]
[1735274131089,8.50174317,190.31,190.25,5.6715]
[1735274131390,2.631,190.29,190.23,14.17344317]
[1735274131584,2.631,190.29,190.23,11.54174317]
[1735274132389,11.13274317,190.29,190.23,11.54174317]
[1735274132593,11.13274317,190.29,190.24,2.6316]
[1735274133395,8.50174317,190.29,190.22,3.04]
[1735274133587,8.50174317,190.27,190.21,63.52367424]
[1735274135494,11.13304317,190.27,190.22,2.6319]
[1735274135794,11.13304317,190.27,190.21,63.52367424]
[1735274136586,11.13304317,190.27,190.22,2.632]
[1735274139496,11.13304317,190.27,190.23,2.6318]
[1735274139689,8.50174317,190.27,190.23,2.6318]
[1735274141498,8.50174317,190.27,190.21,63.52367424]
[1735274141698,8.50174317,190.23,190.18,3.04]
[1735274141903,8.50174317,190.23,190.1,29.89997501]
[1735274141904,8.50174317,190.23,190.15,8.50174317]
[1735274142100,8.50174317,190.23,190.16,3.04]
[1735274142304,8.50174317,190.21,190.15,3.04]
[1735274142503,8.50174317,190.21,190.13,8.50174317]
[1735274142699,8.50174317,190.21,190.14,3.04]
[1735274142904,2.6324,190.19,190.15,2.6328]
[1735274143404,11.13414317,190.19,190.14,2.633]
[1735274143702,8.50174317,190.19,190.13,8.50174317]
[1735274143905,8.50174317,190.21,190.13,8.50174317]
[1735274144106,8.50174317,190.21,190.16,2.6327]
[1735274144905,8.50174317,190.19,190.13,8.50174317]
[1735274145304,8.50174317,190.19,190.11,11.54174317]
[1735274146305,11.13414317,190.19,190.15,2.6329]
[1735274146900,8.50174317,190.19,190.15,2.6329]
[1735274153203,8.50174317,190.19,190.11,3.04]
[1735274153513,2.6326,190.18,190.11,11.54174317]
[1735274154111,2.6326,190.18,190.14,2.633]
[1735274158015,8.50174317,190.19,190.11,11.56174317]
[1735274159519,2.6325,190.18,190.11,11.56174317]
[1735274159917,2.6325,190.18,190.13,2.6331]
[1735274161221,8.50174317,190.14,190.1,1.5498]
[1735274161415,8.50174317,190.14,190.09,6.72157738]
[1735274161717,3.06,190.2,190.09,15.22332055]
[1735274161912,8.50174317,190.17,190.09,15.22332055]
[1735274162117,11.13434317,190.17,190.12,2.6332]
[1735274165318,11.13434317,190.17,190.13,2.6331]
[1735274165527,2.6326,190.17,190.13,2.6331]
[1735274165820,11.13434317,190.17,190.13,2.6331]
[1735274167721,2.6327,190.16,190.09,15.22332055]
[1735274167916,8.50174317,190.17,190.09,6.72157738]
[1735274168123,8.50174317,190.15,190.09,6.72157738]
[1735274168423,8.50174317,190.15,190.09,3.66157738]
[1735274168821,11.13494317,190.13,190.09,6.29517738]
[1735274169019,8.50174317,190.13,190.09,3.66157738]
[1735274170624,2.6333,190.12,190.09,3.66157738]
[1735274170813,8.50174317,190.13,190.09,3.66157738]
[1735274172021,11.13504317,190.13,190.09,6.29527738]
[1735274172430,8.50174317,190.13,190.09,3.66157738]
[1735274172632,8.50174317,190.11,190.04,8.50174317]
[1735274172821,8.50174317,190.09,190.04,3.06]
[1735274173826,11.13564317,190.09,190.02,2.6347]
[1735274174026,11.13564317,190.09,190.01,3.06]
[1735274174225,11.13564317,190.09,190.01,11.56174317]
[1735274175028,11.13564317,190.09,190.05,2.6343]
[1735274175926,8.50174317,190.09,190.01,11.56174317]
[1735274176126,2.6339,190.08,190.04,2.6344]
[1735274180929,8.50174317,190.07,190.04,2.6344]
[1735274181126,8.50174317,190.05,189.97,3.2923]
[1735274181328,8.50174317,190.03,189.98,3.02]
[1735274182430,8.50174317,190.03,190.0,2.635]
[1735274183527,8.50174317,190.03,189.97,11.79404317]
[1735274183826,28.82556654,190.14,189.97,11.79404317]
[1735274183827,8.50174317,190.09,190.01,8.50174317]
[1735274184028,28.82556654,190.14,190.03,8.50174317]
[1735274184328,8.50174317,190.11,190.08,2.6339]
[1735274186433,8.50174317,190.11,190.03,10.03224317]
[1735274186633,8.50174317,190.11,190.07,2.6341]
[1735274188430,11.13524317,190.11,190.07,2.6341]
[1735274188631,8.50174317,190.09,190.06,2.6342]
[1735274188828,8.50174317,190.07,190.03,1.5305]
[1735274189024,8.50174317,190.07,190.03,4.5505]
[1735274190536,8.50174317,190.07,190.04,2.6345]
[1735274190736,8.50174317,190.05,190.03,3.02]
[1735274190938,11.13604317,190.05,190.01,2.6349]
[1735274192231,8.50174317,190.05,190.01,2.6349]
[1735274193042,8.50174317,190.03,190.0,2.635]
[1735274193832,8.50174317,190.01,189.95,1.5674]
[1735274194037,8.50174317,189.99,189.92,11.52174317]
[1735274194431,8.50174317,189.99,189.96,2.6355]
[1735274194837,8.50174317,189.99,189.92,11.52174317]
[1735274195135,8.50174317,189.99,189.96,2.6356]
[1735274195330,8.50174317,189.99,189.92,3.02]
[1735274195534,8.50174317,189.97,189.92,3.02]
[1735274195742,8.50174317,189.97,189.91,11.52174317]
[1735274195942,8.50174317,189.97,189.93,2.6359]
[1735274196941,8.50174317,189.97,189.94,2.6358]
[1735274199038,1.6638,190.04,189.93,8.50174317]
[1735274199234,8.50174317,190.03,189.95,8.50174317]
[1735274199944,1.6638,190.04,189.96,3.02]
[1735274200245,8.50174317,190.03,189.96,3.02]
[1735274201442,8.50174317,190.03,190.0,2.6349]
[1735274203744,115.67441579,190.05,190.0,2.6349]
[1735274204142,8.50174317,190.05,190.01,2.6348]
[1735274204745,11.13614317,190.05,190.01,2.6348]
[1735274205047,8.50174317,190.05,190.0,2.635]
[1735274205234,8.50174317,190.05,189.98,1.5391]
[1735274206245,8.50174317,190.03,189.98,1.5391]
[1735274207547,11.13634317,190.03,189.99,2.6352]
[1735274209149,2.6348,190.02,189.98,2.6352]
[1735274209352,8.50174317,190.01,189.97,6.3095]
[1735274209750,8.50174317,189.99,189.94,3.02]
[1735274210450,8.50174317,189.99,189.91,3.04]
[1735274210649,8.50174317,189.97,189.91,3.04]
[1735274210847,8.50174317,189.97,189.9,11.54174317]
[1735274211041,8.50174317,189.97,189.89,3.22]
[1735274211243,8.50174317,189.97,189.9,3.04]
[1735274212351,11.13714317,189.97,189.92,2.636]
[1735274212749,2.6354,189.97,189.92,2.636]
[1735274212951,11.13714317,189.97,189.92,2.636]
[1735274213650,2.6348,190.01,189.93,8.50174317]
[1735274213852,8.50174317,190.01,189.93,8.50174317]
[1735274214151,2.6347,190.02,189.96,2.6353]
[1735274214346,8.50174317,190.01,189.96,2.6353]
[1735274214948,8.50174317,190.01,189.95,3.04]
[1735274215148,8.50174317,190.01,189.95,11.54174317]
[1735274215750,8.50174317,190.01,189.97,2.6352]
[1735274216055,1.614,190.05,189.95,11.54174317]
[1735274216254,11.13634317,190.02,189.95,11.54174317]
[1735274217452,11.13634317,190.02,189.97,2.6352]
[1735274218654,2.6346,190.02,189.97,2.6352]
[1735274218849,8.50174317,190.01,189.98,2.6352]
[1735274220658,2.6346,190.02,189.98,2.6352]
[1735274220854,11.13634317,190.02,189.98,2.6352]
[1735274223559,8.50174317,190.02,189.95,11.54174317]
[1735274223762,2.6348,190.01,189.97,2.6353]
[1735274224358,8.50174317,190.0,189.97,2.6353]
[1735274226052,11.13664317,190.0,189.96,2.6354]
[1735274226259,8.50174317,190.0,189.96,2.6354]
[1735274227155,11.13664317,190.0,189.96,2.6354]
[1735274228961,8.50174317,190.0,189.94,3.04]
[1735274229161,11.13694317,189.98,189.93,3.04]
[1735274229966,11.13694317,189.98,189.94,2.6356]
[1735274231870,2.6353,189.97,189.93,2.6359]
[1735274232065,8.50174317,189.96,189.93,2.6359]
[1735274232271,11.13724317,189.96,189.91,2.636]
[1735274233472,11.13724317,189.96,189.92,2.636]
[1735274233667,8.50174317,189.94,189.89,3.04]
[1735274233867,7.20639163,190.0,189.9,8.50174317]
[1735274234063,8.50174317,189.98,189.93,2.6358]
[1735274234269,8.50174317,189.98,189.92,8.50174317]
[1735274235271,8.50174317,189.98,189.94,2.6356]
[1735274236270,1.6495,190.02,189.95,3.04]
[1735274236568,8.50174317,190.01,189.95,3.04]
[1735274236771,37.32730971,190.03,189.99,2.635]
[1735274236970,8.50174317,190.03,189.99,2.635]
[1735274237975,8.50174317,190.03,190.0,2.6349]
[1735274239171,2.6343,190.05,190.0,2.6349]
[1735274239172,11.13604317,190.05,190.0,2.6349]
[1735274240267,8.50174317,190.06,190.0,8.50174317]
[1735274240867,8.50174317,190.06,190.03,2.6344]
[1735274241073,8.50174317,190.08,190.02,3.04]
[1735274241777,8.50174317,190.08,190.02,11.54174317]
[1735274242077,8.50174317,190.08,190.02,3.04]
[1735274243475,11.13564317,190.08,190.04,2.6344]
[1735274243678,11.13564317,190.08,190.02,3.04]
[1735274243978,11.13564317,190.08,190.03,2.6344]
[1735274244482,8.50174317,190.08,190.04,2.6343]
[1735274244779,8.50174317,190.1,190.02,11.54174317]
[1735274244979,8.50174317,190.1,190.04,2.6343]
[1735274245180,8.50174317,190.06,189.99,3.04]
[1735274246284,2.6342,190.05,190.0,2.6349]
[1735274247183,2.6342,190.05,190.01,2.6348]
[1735274248485,7.20639163,190.11,189.99,3.04]
[1735274248685,8.50174317,190.07,190.0,8.50174317]
[1735274250385,8.79219163,190.13,190.0,8.50174317]
[1735274250587,8.50174317,190.11,190.04,8.50174317]
[1735274250889,8.50174317,190.11,190.04,11.54174317]
[1735274251082,7.20639163,190.13,190.06,8.50174317]
[1735274251282,8.50174317,190.13,190.06,8.50174317]
[1735274252583,8.50174317,190.13,190.09,2.6336]
[1735274253187,8.50174317,190.13,190.08,2.6338]
[1735274253188,11.13494317,190.13,190.08,2.6338]
[1735274254479,11.13494317,190.13,190.09,2.6337]
[1735274254686,1.5227,190.16,190.09,3.04]
[1735274254882,10.02444317,190.16,190.09,3.04]
[1735274255288,12.65724317,190.16,190.11,2.6334]
[1735274255691,4.1555,190.16,190.09,3.04]
[1735274255893,8.50174317,190.17,190.13,2.633]
[1735274256089,2.6325,190.18,190.1,8.50174317]
[1735274256289,8.50174317,190.19,190.1,8.50174317]
[1735274256587,4.8978,190.21,190.15,2.6328]
[1735274256792,8.50174317,190.19,190.12,8.50174317]
[1735274258296,8.50174317,190.19,190.14,2.633]
[1735274258499,8.50174317,190.21,190.15,3.04]
[1735274258793,2.6316,190.24,190.19,2.6323]
[1735274259097,8.50174317,190.24,190.16,8.50174317]
[1735274259598,8.50174317,190.24,190.19,2.6323]
[1735274260391,2.6317,190.23,190.17,2.6324]
[1735274260796,2.6317,190.23,190.16,8.50174317]
[1735274261398,8.50174317,190.24,190.19,2.6323]
[1735274261594,8.50174317,190.24,190.16,8.50174317]
[1735274261802,8.50174317,190.24,190.18,8.50174317]
[1735274262002,8.50174317,190.24,190.21,2.632]
[1735274263295,8.50174317,190.24,190.2,3.04]
[1735274263494,8.50174317,190.24,190.21,2.632]
[1735274263698,11.13304317,190.26,190.21,2.632]
[1735274264299,8.50174317,190.26,190.22,2.6319]
[1735274265091,2.6314,190.26,190.21,2.632]
[1735274265300,11.13314317,190.26,190.21,2.632]
[1735274265495,8.50174317,190.26,190.2,3.04]
[1735274265699,8.50174317,190.29,190.26,2.6313]
[1735274266094,8.50174317,190.32,190.25,3.04]
[1735274266294,8.50174317,190.32,190.28,2.631]
[1735274267089,8.50174317,190.32,190.25,3.04]
[1735274267295,8.50174317,190.32,190.29,2.6309]
[1735274267696,8.50174317,190.32,190.26,8.50174317]
[1735274268301,13.27715775,190.32,190.2,13.27715775]
[1735274268498,13.27715775,190.32,190.21,3.04]
[1735274269504,2.6312,190.28,190.23,2.6316]
[1735274269705,13.27715775,190.32,190.21,3.04]
[1735274270297,2.6309,190.3,190.24,2.6315]
[1735274270904,13.27715775,190.32,190.17,13.27715775]
[1735274271105,13.27715775,190.29,190.18,3.04]
[1735274272408,1.6481,190.31,190.18,3.04]
[1735274272601,2.6308,190.3,190.24,2.6315]
[1735274272802,2.6308,190.3,190.24,5.6715]
[1735274273605,1.6481,190.31,190.24,3.04]
[1735274273905,2.6311,190.28,190.24,3.04]
[1735274274108,1.6481,190.31,190.24,3.04]
[1735274274306,2.631,190.29,190.22,2.6318]
[1735274274608,1.6481,190.31,190.22,5.6718]
[1735274274907,2.6312,190.28,190.23,2.6317]
[1735274276107,1.6481,190.31,190.23,2.6317]
[1735274276307,2.6309,190.29,190.23,2.6317]
[1735274276904,1.6481,190.31,190.23,2.6317]
[1735274276905,2.6311,190.28,190.23,2.6317]
[1735274277210,13.27715775,190.29,190.22,3.04]
[1735274277710,2.6312,190.27,190.22,3.04]
[1735274278108,2.6312,190.27,190.23,2.6317]
[1735274280402,2.6311,190.28,190.23,2.6317]
[1735274280703,2.6311,190.28,190.24,2.6316]
[1735274280904,13.27715775,190.29,190.22,3.04]
[1735274281103,4.2788,190.31,190.22,3.04]
[1735274281711,4.2788,190.31,190.26,2.6313]
[1735274281907,2.6308,190.3,190.26,2.6313]
[1735274282112,1.6481,190.31,190.22,3.04]
[1735274283214,2.6309,190.29,190.22,3.04]
[1735274283820,2.6309,190.29,190.24,2.6315]
[1735274285119,2.6309,190.29,190.22,3.04]
[1735274285417,2.6309,190.29,190.25,2.6314]
[1735274285812,1.6481,190.31,190.22,3.04]
[1735274286012,107.59455555,190.34,190.23,13.27715775]
[1735274286411,3.2146,190.34,190.23,14.86325775]
[1735274286612,28.82556654,190.35,190.26,13.27715775]
[1735274286911,28.82556654,190.35,190.27,3.04]
[1735274287219,7.20639163,190.38,190.27,3.04]
[1735274288318,8.49361932,190.37,190.3,8.49361932]
[1735274289018,8.49361932,190.37,190.33,2.6302]
[1735274290221,8.49361932,190.37,190.34,2.6302]
[1735274293621,3.1257,190.39,190.32,3.04]
[1735274293822,11.61931932,190.39,190.36,2.6299]
[1735274294422,8.49361932,190.37,190.36,2.6299]
[1735274296411,11.61931932,190.39,190.36,2.6299]
[1735274296615,11.61931932,190.39,190.32,11.53361932]
[1735274296817,10.02971932,190.39,190.32,11.53361932]
[1735274297117,8.49361932,190.37,190.23,4.7458]
[1735274297421,8.49361932,190.37,190.28,8.49361932]
[1735274297635,8.49361932,190.37,190.29,3.04]
[1735274298313,2.6299,190.37,190.32,2.6304]
[1735274298517,1.5361,190.39,190.3,8.49361932]
[1735274298719,1.5361,190.39,190.32,8.49361932]
[1735274298919,8.49361932,190.4,190.32,8.49361932]
[1735274299824,8.49361932,190.4,190.34,2.6302]
[1735274300025,8.49361932,190.4,190.34,3.04]
[1735274300318,7.20639163,190.43,190.34,3.04]
[1735274300525,8.49361932,190.43,190.4,2.6293]
[1735274301225,8.49361932,190.43,190.42,2.6291]
[1735274302122,1.6755,190.47,190.4,8.49361932]
[1735274302326,10.16911932,190.47,190.4,8.49361932]
[1735274302521,8.49361932,190.47,190.4,8.49361932]
[1735274302926,8.49361932,190.47,190.44,2.6288]
[1735274303119,8.49361932,190.47,190.4,8.49361932]
[1735274303826,8.49361932,190.47,190.4,11.55361932]
[1735274304226,8.49361932,190.47,190.44,2.6289]
[1735274304426,8.49361932,190.49,190.44,2.6289]
[1735274305224,11.12181932,190.49,190.44,2.6289]
[1735274308029,8.49361932,190.45,190.4,2.6293]
[1735274308734,8.49361932,190.45,190.41,2.6293]
[1735274310836,2.6287,190.46,190.41,2.6293]
[1735274311427,8.49361932,190.47,190.39,3.06]
[1735274311428,11.12191932,190.49,190.43,2.6289]
[1735274311833,8.49361932,190.47,190.42,8.49361932]
[1735274312033,11.12221932,190.47,190.41,2.6292]
[1735274313537,8.49361932,190.49,190.42,8.49361932]
[1735274313739,11.12191932,190.49,190.42,8.49361932]
[1735274314441,11.12191932,190.49,190.44,2.6289]
[1735274319832,163.09368055,190.56,190.45,3.06]
[1735274320029,1.6296,190.57,190.5,8.49361932]
[1735274320241,37.31918586,190.58,190.51,3.06]
[1735274320941,2.6272,190.57,190.53,2.6276]
[1735274321140,7.20639163,190.62,190.54,8.49361932]
[1735274321349,8.49361932,190.61,190.54,8.49361932]
[1735274321534,7.20639163,190.62,190.54,8.49361932]
[1735274321738,7.20639163,190.62,190.56,8.49361932]
[1735274321937,7.20639163,190.62,190.6,8.49361932]
[1735274322135,7.20639163,190.62,190.6,11.55361932]
[1735274322641,37.31918586,190.67,190.6,11.55361932]
[1735274323348,2.626,190.66,190.61,2.6266]
[1735274325239,16.39790698,190.7,190.6,3.06]
[1735274325440,16.39790698,190.7,190.62,2.6264]
[1735274325441,2.6257,190.68,190.62,2.6264]
[1735274325638,16.39790698,190.7,190.6,3.06]
[1735274326141,3.1688,190.7,190.6,3.06]
[1735274326345,13.22910698,190.74,190.61,13.22910698]
[1735274326546,3.2672,190.75,190.61,14.84000698]
[1735274326940,2.625,190.73,190.66,2.6257]
[1735274327144,2.625,190.73,190.67,3.06]
[1735274327646,4.2347,190.75,190.67,3.06]
[1735274327950,1.6187,190.78,190.67,3.06]
[1735274328150,1.6187,190.78,190.67,16.28910698]
[1735274328449,14.86530698,190.79,190.67,16.28910698]
[1735274329148,13.22910698,190.76,190.67,3.06]
[1735274329741,2.6248,190.74,190.68,2.6256]
[1735274330849,2.6251,190.72,190.66,2.6258]
[1735274331048,13.22910698,190.73,190.61,78.22620643]
[1735274331249,13.22910698,190.73,190.62,3.06]
[1735274331446,2.6254,190.7,190.63,2.6263]
[1735274331849,2.6254,190.7,190.62,3.06]
[1735274332145,4.2459,190.72,190.62,3.06]
[1735274332355,13.22910698,190.76,190.64,13.22910698]
[1735274332643,15.85370698,190.76,190.7,2.6253]
[1735274332953,15.85370698,190.76,190.7,3.06]
[1735274333340,4.2626,190.78,190.7,3.06]
[1735274333742,1.6382,190.78,190.7,3.06]
[1735274333948,2.6244,190.77,190.71,2.6252]
[1735274334348,1.6382,190.78,190.7,3.06]
[1735274334551,2.6244,190.77,190.7,3.06]
[1735274335451,2.6244,190.77,190.71,2.6252]
[1735274336551,1.6382,190.78,190.7,3.06]
[1735274337453,1.6382,190.78,190.73,2.6248]
[1735274338352,4.2624,190.78,190.73,2.6248]
[1735274339657,1.6382,190.78,190.7,3.06]
[1735274339855,14.86530698,190.79,190.75,2.6246]
[1735274340155,1.6362,190.79,190.75,5.6846]
[1735274341154,1.6362,190.79,190.75,3.06]
[1735274342153,1.6362,190.79,190.69,1.5355]
[1735274342154,14.86530698,190.79,190.73,3.06]
[1735274342750,1.6362,190.79,190.73,3.06]
[1735274343655,2.6242,190.78,190.73,5.6849]
[1735274344257,2.6242,190.78,190.73,3.06]
[1735274344452,105.67022837,190.82,190.73,3.06]
[1735274344659,3.3124,190.84,190.73,3.06]
[1735274345047,3.3124,190.84,190.74,3.06]
[1735274345251,3.3124,190.84,190.71,13.22910698]
[1735274345458,3.3124,190.84,190.74,13.22910698]
[1735274345848,5.9358,190.84,190.78,2.6242]
[1735274346158,2.6234,190.84,190.79,3.06]
[1735274346460,13.22910698,190.86,190.79,3.06]
[1735274346658,2.6235,190.83,190.79,3.06]
[1735274347056,2.624,190.8,190.79,3.06]
[1735274347254,13.22910698,190.83,190.75,3.06]
[1735274347454,13.22910698,190.8,190.75,3.06]
[1735274348661,2.6243,190.78,190.75,3.06]
[1735274349159,13.22910698,190.8,190.75,3.06]
[1735274349358,2.6241,190.79,190.75,3.06]
[1735274350451,2.6239,190.81,190.75,5.6846]
[1735274350758,1.606,190.82,190.75,3.06]
[1735274351857,4.2297,190.82,190.77,2.6243]
[1735274352056,4.2297,190.82,190.75,3.06]
[1735274352057,13.22910698,190.86,190.75,3.06]
[1735274353563,2.6236,190.83,190.78,2.6242]
[1735274354964,2.6234,190.85,190.8,2.6239]
[1735274355159,2.6234,190.85,190.8,5.6839]
[1735274355357,13.22910698,190.86,190.8,3.06]
[1735274355659,15.85240698,190.86,190.81,2.6238]
[1735274355865,13.22910698,190.86,190.81,2.6238]
[1735274356062,13.22910698,190.86,190.8,3.06]
[1735274356258,2.6235,190.84,190.8,3.06]
[1735274356963,2.6235,190.84,190.79,2.624]
[1735274357168,2.6235,190.84,190.8,5.6839]
[1735274357466,2.6233,190.85,190.8,3.06]
[1735274358462,2.6233,190.85,190.8,5.6839]
[1735274360960,2.6233,190.85,190.81,2.6237]
[1735274361466,13.22910698,190.86,190.8,3.06]
[1735274361667,13.22910698,190.86,190.82,2.6237]
[1735274361668,15.85220698,190.86,190.82,2.6237]
[1735274361874,2.6231,190.86,190.82,2.6237]
[1735274362365,24.58259861,190.88,190.8,3.06]
[1735274362570,7.20639163,190.87,190.8,3.06]
[1735274362764,7.20639163,190.87,190.83,2.6234]
[1735274363565,2.623,190.87,190.83,2.6234]
[1735274363768,8.73049163,190.88,190.84,2.6234]
[1735274364371,1.5241,190.88,190.84,2.6234]
[1735274364677,30.67413654,190.89,190.8,3.06]
[1735274364967,30.48356654,190.89,190.8,3.06]
[1735274365166,28.82556654,190.89,190.8,16.28910698]
[1735274365371,28.82556654,190.89,190.86,2.6231]
[1735274365872,7.20639163,190.89,190.86,2.6231]
[1735274367072,2.6226,190.91,190.87,2.623]
[1735274367260,2.6223,190.92,190.87,2.623]
[1735274368070,9.82869163,190.92,190.87,2.623]
[1735274368271,8.44657653,190.9,190.87,2.623]
[1735274370467,8.44657653,190.88,190.85,2.6232]
[1735274370668,8.44657653,190.86,190.85,3.08]
[1735274370868,8.44657653,190.86,190.79,8.44657653]
[1735274371072,8.44657653,190.83,190.8,5.7038]
[1735274374073,2.6234,190.85,190.8,5.7038]
[1735274375469,14.82343426,190.87,190.8,3.08]
[1735274375668,1.6167,190.87,190.8,3.08]
[1735274376369,7.20639163,190.89,190.8,3.08]
[1735274376770,7.20639163,190.89,190.86,2.6231]
[1735274377071,13.20673426,190.9,190.86,2.6231]
[1735274377375,2.6226,190.9,190.86,2.6231]
[1735274377777,2.6226,190.9,190.85,2.6233]
[1735274378677,7.20639163,190.91,190.8,16.28673426]
[1735274378876,13.20673426,190.9,190.81,3.08]
[1735274379269,2.623,190.88,190.81,5.7038]
[1735274379474,13.20673426,190.9,190.81,5.7038]
[1735274379972,2.6229,190.89,190.84,2.6234]
[1735274380175,13.20673426,190.9,190.84,2.6234]
[1735274380476,7.20639163,190.89,190.84,2.6234]
[1735274381473,2.6229,190.88,190.84,2.6234]
[1735274384075,2.623,190.87,190.83,2.6235]
[1735274384386,42.0323008,190.9,190.81,3.08]
[1735274384779,2.623,190.88,190.81,3.08]
[1735274385078,42.0323008,190.9,190.81,3.08]
[1735274385079,13.20673426,190.9,190.81,3.08]
[1735274386178,42.0323008,190.9,190.81,3.08]
[1735274386381,2.6232,190.86,190.81,5.7037]
[1735274386581,42.0323008,190.9,190.81,3.08]
[1735274386983,7.20639163,190.89,190.81,3.08]
[1735274387881,34.82590917,190.9,190.81,3.08]
[1735274387882,2.623,190.88,190.81,3.08]
[1735274388083,13.20673426,190.9,190.81,3.08]
[1735274388885,20.41312589,190.9,190.81,3.08]
[1735274389085,7.20639163,190.9,190.81,3.08]
[1735274389278,13.20673426,190.89,190.81,3.08]
[1735274389788,42.0323008,190.89,190.81,3.08]
[1735274390182,42.0323008,190.89,190.81,5.7038]
[1735274390996,20.41312589,190.89,190.81,5.7038]
[1735274392484,2.6233,190.85,190.81,5.7038]
[1735274392782,13.20673426,190.86,190.78,3.06]
[1735274392988,13.20673426,190.86,190.75,1.578]
[1735274393288,13.20673426,190.86,190.76,3.06]
[1735274393289,3.2852,190.85,190.76,3.06]
[1735274393489,4.8752,190.85,190.76,3.06]
[1735274393686,13.20673426,190.83,190.75,2.6246]
[1735274394189,8.45466906,190.82,190.75,2.6246]
[1735274394383,2.6241,190.8,190.75,2.6246]
[1735274395591,8.45466906,190.82,190.75,2.6246]
[1735274395791,2.6241,190.79,190.75,2.6246]
[1735274396584,2.6241,190.79,190.74,2.6248]
[1735274396890,2.6241,190.79,190.74,14.13946906]
[1735274397386,2.6241,190.79,190.74,11.51466906]
[1735274397591,2.6241,190.79,190.75,2.6246]
[1735274398088,2.6243,190.78,190.73,5.6848]
[1735274398885,8.45466906,190.8,190.73,3.06]
[1735274399086,11.07876906,190.8,190.74,2.6248]
[1735274399590,11.07876906,190.8,190.73,3.06]
[1735274399795,11.07876906,190.8,190.75,2.6247]
[1735274400188,8.45466906,190.8,190.71,3.64934787]
[1735274400497,8.45466906,190.76,190.71,3.06]
[1735274400986,8.45466906,190.76,190.72,2.6251]
[1735274402085,7.20639163,190.83,190.73,8.45466906]
[1735274402286,8.45466906,190.8,190.73,8.45466906]
[1735274402487,8.45466906,190.8,190.76,2.6245]
[1735274402792,11.07876906,190.8,190.73,8.45466906]
[1735274403393,8.45466906,190.78,190.71,11.51466906]
[1735274403693,8.45466906,190.76,190.71,3.06]
[1735274405593,11.07916906,190.76,190.72,2.625]
[1735274405892,8.45466906,190.74,190.7,3.06]
[1735274406092,8.45466906,190.72,190.65,8.45466906]
[1735274406393,8.45466906,190.7,190.63,8.45466906]
[1735274406588,11.08026906,190.68,190.63,5.6862]
[1735274406789,8.45466906,190.68,190.63,3.06]
[1735274407894,8.45466906,190.66,190.59,1.5225]
[1735274408085,2.6261,190.65,190.6,5.6867]
[1735274408789,2.6259,190.66,190.61,2.6266]
[1735274409487,2.6262,190.64,190.6,3.06]
[1735274410790,2.6262,190.64,190.59,2.6268]
[1735274410791,2.6265,190.62,190.58,3.08]
[1735274410991,13.23240074,190.65,190.52,14.88120074]
[1735274411299,3.2051,190.67,190.53,3.08]
[1735274411300,13.23240074,190.62,190.53,3.08]
[1735274411492,2.627,190.59,190.53,5.7076]
[1735274411685,2.627,190.59,190.53,3.08]
[1735274412596,2.627,190.59,190.54,2.6275]
[1735274412797,2.6266,190.62,190.53,3.08]
[1735274413198,1.6587,190.64,190.56,2.6272]
[1735274413402,2.6266,190.61,190.56,2.6272]